Cogmind - Beta 16 @@@ ROGUE MODE // 2025.11.18 @ 16:48:41 Player: oshi0ne1 Result: Destroyed by D-53 Grenadier with Mini Grenade Launcher Performance ------------- Evolutions (0) 0 Regions Visited (2) 400 Robots Destroyed (6) 30 Value Destroyed (227) 227 Prototype IDs (0) 0 Alien Tech Used (0) 0 Bonus (0) 0 TOTAL SCORE: 657 Bonus ------- None Cogmind --------- Core Integrity 0/250 Matter 295/300 Energy 229/250 System Corruption 0% Temperature Cool (0) Movement Core (450) Ox8 Location -10/Mines Parts ------- > --- POWER (1) -------- Ion Engine > --- PROPULSION (2) --- (None) > --- UTILITY (2) ------ Improved Heat Sink Large Storage Unit > --- WEAPON (2) ------- Small Laser > --- INVENTORY (15) --- Light Ion Engine Light Treads Improved Heat Sink Peak State ------------ > --- POWER ------------ Ion Engine > --- PROPULSION ------- Light Treads Light Treads > --- UTILITY ---------- Improved Heat Sink Large Storage Unit > --- WEAPON ----------- Medium Laser Salvaging Laser > --- INVENTORY -------- Light Ion Engine Wheel Wheel Small Laser Light Assault Rifle [Rating: 9] Favorites ----------- Power Ion Engine Engine Ion Engine Propulsion Light Treads Treads Light Treads Wheel Wheel Utility Large Storage Unit Device Improved Heat Sink Storage Large Storage Unit Weapon Light Assault Rifle Energy Gun Medium Laser Ballistic Gun Light Assault Rifle Build | -11 -10 -10 ------- Run | Yrd Mat Min Slots Evolved . | . . . Power . | . . . Propulsion . | . . . Utility . | . . . Weapon . | . . . Parts Attached 15 | 6 4 5 Power 2 | 1 . 1 Engine 2 | 1 . 1 Core . | . . . Reactor . | . . . Propulsion 4 | 2 . 2 Treads 2 | 2 . . Leg . | . . . Wheel 2 | . . 2 Hover . | . . . Flight . | . . . Utility 4 | 1 2 1 Device 2 | . 1 1 Storage 2 | 1 1 . Processor . | . . . Hackware . | . . . Protection . | . . . Artifact . | . . . Weapon 5 | 2 2 1 Energy Gun 3 | 1 1 1 Energy Cannon . | . . . Ballistic Gun 2 | 1 1 . Ballistic Cannon . | . . . Launcher . | . . . Special Weapon . | . . . Impact Weapon . | . . . Slashing Weapon . | . . . Piercing Weapon . | . . . Special Melee Weapon . | . . . Unidentified Prototypes . | . . . Parts Lost 8 | . . 8 Power 1 | . . 1 Propulsion 3 | . . 3 Utility . | . . . Weapon 4 | . . 4 Highest Loss Streak 5 | . . 5 To Critical Strikes . | . . . Average Backups 4 | 2 5 5 Power . | . 1 1 Propulsion 1 | 1 2 1 Utility . | . . . Weapon 1 | . 2 2 Tool/Special . | . . . Unused Backups 1 | . . 1 Power 1 | . . 1 Propulsion . | . . . Utility . | . . . Weapon . | . . . Tool/Special . | . . . Average Slot Usage (%) 92 | . 91 94 Engine 13 | . 14 12 Treads 21 | . 28 10 Wheel 5 | . . 14 Device 9 | . 6 14 Storage 14 | . 14 14 Energy Gun 11 | . 12 10 Ballistic Gun 15 | . 15 16 Peak Build Rating 9 | 6 9 9 Average Rating 7 | 4 7 8 On Entrance 5 | . 6 9 Avg Prop Armor Cover (%) . | . . . Naked Turns . | . . . Heaviest Build 29 | 13 29 29 Greatest Support 40 | 40 40 20 Greatest Overweight (x) 1 | . . 1 Average Overweight (x) . | . . 1 Largest Inventory Capacity 15 | 8 15 15 Average Capacity 13 | 7 14 15 Most Carried 6 | 4 6 6 Average Carried 4 | 2 5 5 Final Capacity 15 | 8 15 15 Final Carried 6 | 4 6 3 Class Distribution -------------------- 100% | Mutant Dominant Class ---------------- Mutant | -10/Materials Mutant | -10/Mines Resources | -11 -10 -10 ----------- Run | Yrd Mat Min Matter Collected 408 | 223 57 128 Remotely . | . . . Salvage Created 261 | . 168 93 Parts 13 | . 8 5 Haulers Intercepted . | . . . Recyclers Shooed . | . . . Parts Field Recycled . | . . . Retrieved Matter . | . . . Parts Self-Destructed . | . . . Prevented . | . . . Parts Restored . | . . . Kills | -11 -10 -10 ------- Run | Yrd Mat Min Combat Hostiles Destroyed 6 | . 4 2 Guns 6 | . 4 2 Classes Destroyed 1 | . 1 . Grunt 6 | . 4 2 Best Kill Streak 3 | . 3 2 Combat Bots Only 3 | . 3 2 Max Kills in Single Turn 1 | . 1 1 Gunslinging . | . . . Exploded . | . . . Melee . | . . . Uniques/NPCs Destroyed . | . . . Combat | -11 -10 -10 -------- Run | Yrd Mat Min Hostile Shots Fired 82 | . 37 45 Missed 10 | . 7 3 Hits 72 | . 30 42 Projectile 72 | . 30 42 AOE 7 | . . 7 Critical Strikes 3 | . . 3 Damage Taken 1062 | . 332 730 Core 252 | . 69 183 Absorbed by Shields . | . . . Core Remaining (%) 100 | 100 . . Volleys Fired 32 | . 15 17 Largest 2 | . 2 2 Hottest 80 | . 80 50 Shots Fired 60 | . 30 30 Gun 60 | . 30 30 Cannon . | . . . Launcher . | . . . Special . | . . . Kinetic 30 | . 4 26 Thermal 30 | . 26 4 Explosive . | . . . Electromagnetic . | . . . Robot Hit Streak 13 | . 9 13 Robot Miss Streak 5 | . 4 5 Penetration Max . | . . . Secondary Targets 1 | . 1 . Max Gunslinging Chain 1 | . 1 . Shots Hit Robots 47 | . 22 25 Core Hits 13 | . 7 6 Critical Kills . | . . . Critical Parts Destroyed . | . . . Critical Strikes . | . . . Melee Attacks . | . . . Impact . | . . . Slashing . | . . . Piercing . | . . . Sneak Attacks . | . . . Combat Hostiles . | . . . Follow-up Attacks . | . . . Damage Inflicted 502 | . 228 274 Guns 502 | . 228 274 Cannons . | . . . Explosions . | . . . Melee . | . . . Ramming . | . . . Kinetic 261 | . 6 255 Thermal 241 | . 222 19 Explosive . | . . . Electromagnetic . | . . . Impact . | . . . Slashing . | . . . Piercing . | . . . Highest Corruption . | . . . Average Corruption . | . . . Corruption Purged . | . . . Corruption Blocked . | . . . Overload Shots . | . . . Overflow Damage . | . . . Projectiles . | . . . Explosions . | . . . Melee . | . . . Knockbacks . | . . . Impact . | . . . Kinetic . | . . . Secondary . | . . . Self-Inflicted Damage . | . . . Shots . | . . . Rammed . | . . . Targets Rammed . | . . . Kicked . | . . . Crushed . | . . . Highest Temperature 342 | . 342 13 Average Temperature 163 | . 198 3 Received Heat Transfer 492 | . 180 312 Siege Activations . | . . . Martial Activations . | . . . Shielding Activations . | . . . Robots Disrupted . | . . . Combat Hostiles . | . . . Robots Corrupted . | . . . Combat Hostiles . | . . . Parts Fried . | . . . Impact Corruptions . | . . . Robots Melted . | . . . Combat Hostiles . | . . . Parts Melted 3 | . 3 . Heat Transferred 695 | . 645 50 Parts Sabotaged . | . . . Parts Stolen . | . . . Parts Stripped . | . . . Power Chain Reactions . | . . . Alert | -11 -10 -10 ------- Run | Yrd Mat Min Maximum Alert Level . | . . . Low Security (%) 100 | 100 100 100 Level 1 . | . . . Level 2 . | . . . Level 3 . | . . . Level 4 . | . . . Level 5 . | . . . High Security . | . . . Max Security . | . . . Peak Influence 70 | . 70 40 Initial . | . . . Average 14 | . 19 13 Influence Increases 155 | . 90 65 Destroy 0b10 Robot/C 120 | . 80 40 Destroy Leader 20 | . 10 10 Disable Machine 15 | . . 15 Influence Decreases 155 | . 90 65 Time Decay 150 | . 90 60 Lost Part 5 | . . 5 Squads Dispatched 1 | . 1 . Investigation 1 | . 1 . Extermination . | . . . Reinforcement . | . . . Assault . | . . . Garrison . | . . . Intercept . | . . . Searches Triggered . | . . . Construction Impeded . | . . . Haulers Reinforced . | . . . Active Scanning Responses . | . . . Cargo Convoy Interrupts . | . . . Stealth | -11 -10 -10 --------- Run | Yrd Mat Min Distress Signals . | . . . Communications Jammed . | . . . Distress Signals . | . . . Times Spotted 11 | . 7 4 Peak Tracking Total 4 | . 4 2 Tactical Retreats . | . . . Traps | -11 -10 -10 ------- Run | Yrd Mat Min Traps Triggered . | . . . Indirectly . | . . . Trap Hack Attempts . | . . . Triggered . | . . . Disarmed . | . . . Reprogrammed . | . . . Reused . | . . . Traps Extracted . | . . . Installed . | . . . Triggered . | . . . Machines | -11 -10 -10 ---------- Run | Yrd Mat Min Machines Disabled 1 | . . 1 Max in Single Turn 1 | . . 1 Machines Repaired . | . . . Machines Dismantled . | . . . Machines Sabotaged . | . . . Overloaded Fab Kills . | . . . Hacking | -11 -10 -10 --------- Run | Yrd Mat Min Machines Accessed . | . . . Terminals . | . . . Fabricators . | . . . Repair Stations . | . . . Recycling Units . | . . . Scanalyzers . | . . . Garrison Access . | . . . Total Hacks . | . . . Successful . | . . . Failed . | . . . Catastrophic . | . . . Database Lockouts . | . . . Manual . | . . . Terminals . | . . . Fabricators . | . . . Repair Stations . | . . . Recycling Units . | . . . Scanalyzers . | . . . Garrison Access . | . . . Terminal Hacks . | . . . Fabricator Hacks . | . . . Repair Station Hacks . | . . . Recycling Unit Hacks . | . . . Scanalyzer . | . . . Garrison Access Hacks . | . . . Unauthorized Hacks . | . . . Terminals . | . . . Fabricators . | . . . Repair Stations . | . . . Recycling Units . | . . . Scanalyzers . | . . . Garrison Access . | . . . Data Cores Recovered . | . . . Used . | . . . Hacking Detections . | . . . Full Trace Events . | . . . Feedback Events . | . . . Feedback Blocked . | . . . Robot Schematics Acquired . | . . . Robots Built . | . . . Authchips . | . . . Time . | . . . Total Robot Build Rating . | . . . Part Schematics Acquired . | . . . Parts Built . | . . . Authchips . | . . . Time . | . . . Total Part Build Rating . | . . . Part Studies Acquired . | . . . Parts Repaired . | . . . Time . | . . . Parts Recycled . | . . . Recycled Matter . | . . . Retrieved Matter . | . . . Retrieved Components . | . . . Parts Scanalyzed . | . . . Part Schematics Acquired . | . . . Parts Damaged . | . . . Bothacking | -11 -10 -10 ------------ Run | Yrd Mat Min Used RIF Installer . | . . . Robots Hacked . | . . . Non-combat . | . . . Combat . | . . . Robot Hacks Applied . | . . . Relay Couplers Released . | . . . Fabnet Peak Effective % . | . . . Robots Rewired . | . . . Allies Hacked . | . . . Hacks Repelled . | . . . Allies | -11 -10 -10 -------- Run | Yrd Mat Min Total Allies . | . . . Largest Group . | . . . Highest-Rated Group . | . . . Highest-Rated Ally . | . . . Total Orders . | . . . Ally Attacks . | . . . Total Damage . | . . . Kills . | . . . Allies Corrupted . | . . . Allies Melted . | . . . Intel | -11 -10 -10 ------- Run | Yrd Mat Min Active Infowar (turns) . | . . . Robot Analysis Total . | . . . Derelict Logs Recovered 1 | . . 1 Drone Launches . | . . . Drone Recoveries . | . . . Exploration | -11 -10 -10 ------------- Run | Yrd Mat Min Turns Passed 574 | 77 318 179 Spaces Moved 283 | 42 160 81 Core 2 | 2 . . Treads 213 | 40 160 13 Legs . | . . . Wheels 68 | . . 68 Hover . | . . . Flight . | . . . Fastest Speed 50 | 50 160 95 Average Speed 147 | 154 160 118 Slowest Speed 240 | 160 160 240 Overloaded Moves . | . . . Propulsion Burnouts . | . . . Robots Hopped . | . . . Potential Cave-ins . | . . . Cave-ins Triggered . | . . . Exploration Rate (%) 20 | 5 36 21 Regions Visited 2 Branch Regions 1 Pre-discovered Areas . | . . . Known Exits Taken . | . . . Unknown Exits Taken 2 | 1 1 . Scrap Searched 1 | . . 1 Spaces Dug . | . . . Terrain Destroyed . | . . . Melee . | . . . Projectile . | . . . AOE . | . . . Terrain Rammed . | . . . Walls Destroyed . | . . . Machines Disabled . | . . . Actions | -11 -10 -10 --------- Run | Yrd Mat Min Total 384 | 51 196 137 Wait 45 | . 14 31 Move 281 | 41 159 81 Hop . | . . . Pick Up 6 | 4 2 . Fast Attach 9 | 6 2 1 Attach 5 | . . 5 Detach 1 | . . 1 Swap 4 | . 3 1 Drop 1 | . 1 . Fire 32 | . 15 17 Melee . | . . . Ram . | . . . Kick . | . . . Crush . | . . . Escape Stasis . | . . . Rewire . | . . . Trap . | . . . Miscellaneous . | . . . Route ------- -11/Scrapyard -10/Materials -10/Mines History --------- Turn | Location | Event 12 | -11/Scrapyard | Discovered new exit (range 15) 78 | -11/Scrapyard | Entered Materials 79 | -10/Materials | Met a group of wandering Federalists 216 | -10/Materials | Lost 5 allies 313 | -10/Materials | Build established: Mutant 371 | -10/Materials | Discovered new exit (range 12) 396 | -10/Materials | Entered Mines 421 | -10/Mines | Core integrity fell below 50% 461 | -10/Mines | Lost 3 parts (1p1n1w) 484 | -10/Mines | Assembled infested the area 489 | -10/Mines | Assisted by a Guerilla fighting off Assembled 572 | -10/Mines | Core integrity fell below 20% 575 | -10/Mines | Destroyed by D-53 Grenadier with Mini Grenade Launcher Last Messages --------------- Current location identified: Mines K-01 Serf collects debris. Searching scrap... Found EM Pulse Gun. Found Core Shielding. Found Sml. Matter Pod. Found 67 Matter. K-01 Serf collects debris. T-07 Excavator destroyed. Acquired 35 matter. C-45 Heavy ARC bursts open, deploying its payload. K-01 Serf collects debris. Salvaging Laser destroyed. Assault Rifle destroyed. K-01 Serf collects debris. Med. Laser destroyed. Wheel destroyed. D-53 Grenadier destroyed. Wheel destroyed. Map ----- +----------------------------------------------------+ | ?????????????????????????????????????????????????? | | ?????????????????????????????????????????????????? | | ?????????????????????????????????????????????????? | | ?????????????????????????????????????????????????? | | ?????????????????????????????????????????????????? | | ?????????????????????????????????????????????????? | | ?????????????????????????????????????????????????? | | ?????????????????????????????????????????????????? | | ?????????????????????????????????????????????????? | | ?????????????????????????????????????????????????? | | ?????????????????????????????????????????????????? | | ?????????????????????????????????????????????????? | | ?????????????????????????????????????????????????? | | ???????????????#?????????????????????????????????? | | ???????????????# ????????????????????????????????? | | ???????????????# ????????????????????????????????? | | ???????????????# ????????????????????????????????? | | ???????????????# ???????????????????????????????? | | ???????????????# ???????????????????????????????? | | ??????????????## ????????????####???????????????? | | ?????????????## ###?######## ##??????????????? | | ????? ######## ### # #??????????????? | | ????? !$ # k #??????????????? | | ???????? =%! #???????????????? | | ?????????? %[ # #?????????????????? | | ?????????? * @ ##?????????????????? | | ????????????# % ##?????????????????? | | ?????????????# d #?????????????????? | | ?????????????# #?????????????????? | | ?????????????### #?????????????????? | | ???????????????### ### ##?????????????????? | | ?????##??????????# ##??####??????????????????? | | ???###T###???????### ##?????????????????????????? | | ???# #?????????# #??????????????????????????? | | ???# """ #?????????# #??????????????????????????? | | ???# """ ########### #??????????????????????????? | | ???# """ % #??????????????????????????? | | ???# ## ###########??????????????????????????? | | ???# ## #????????????????????????????????????? | | ???######## #????????????????????????????????????? | | ??????????# #????????????????????????????????????? | | ??????????# #????????????????????????????????????? | | ??????????# #????????????????????????????????????? | | ??????????# #????????????????????????????????????? | | ??????????# #????????????????????????????????????? | | ########### ###??????????????????????????????????? | | # #??????????????????????????????????? | | # #??#???????????????????????????????? | | # ## #???????????????????????????????? | | # """ """ """ #???????????????????????????????? | +----------------------------------------------------+ Best States ------------- Heat Dissipation 39 Energy Generation 10 Energy Capacity 250 Matter Stores 300 Matter Capacity 300 Sight Range 16 Terrain Scan Density 10 Evasion (%) 41 Recoil Reduction 2 Item Schematics ----------------- None Robot Schematics ------------------ None Fabricated ------------ Nothing Repaired ---------- Nothing Studied --------- None Alien Tech Used ----------------- None Achievements -------------- None Challenges ------------ None Game ------ Seed ArmoredUtilityInterpreter Manual? 0 Play Time 00:06:29 Cumulative 20.6 hours Start 2025.11.18 @ 16:40:41 End 2025.11.18 @ 16:48:41 Sessions 1 Manual Loads 0 Difficulty Rogue Special Mode None Game No. 39 Rogue 5 Adventurer 34 Explorer 0 Win Type - Total 0 Types 0/0/0/0/0/0/0/0/0/0 Lore% 13 Gallery% 23 Achievement% 19 Wizard Run 0 Options --------- Layout 2 ASCII 0 Keyboard 0 Movement Mouse Keybinds 0 Fullscreen 1 Font 24/Smallcaps Map View 50x44 Zoom Use 0% Tactical HUD 0 Map Filters NONE Filters NONE Steam 1 RUN: e14d9a0c-5806-4dcd-a88e-ee002ef24609